fUST/lending_fUST_20250726
["ID","MTS","AMOUNT","RATE_DAILY","PERIOD"]
[374907786,1753467045742,-484.96,0.0002047,2]
[374907788,1753467045752,-460.0,0.0002047,2]
[374907790,1753467045761,-460.0,0.0002047,2]
[374907792,1753467045772,-669.56,0.0002047,2]
[374907794,1753467045781,-294.84,0.0002047,2]
[374907796,1753467045791,-365.74881087,0.0002047,2]
[374907798,1753467045803,-94.25118913,0.0002047,2]
[374907800,1753467045812,-344.76046304,0.00020484,2]
[374907802,1753467045824,-20.66953696,0.00020484,2]
[374907804,1753467045833,-210.336324,0.00020513,2]
[374907806,1753467045843,-151.0,0.00020513,2]
[374907808,1753467045852,-133.70342379,0.00020514,2]
[374907810,1753467045863,-326.29657621,0.00020514,2]
[374907812,1753467045873,-460.0,0.00020514,2]
[374907814,1753467045883,-390.46914614,0.00020514,2]
[374907816,1753467045895,-69.53085386,0.00020514,2]
[374907818,1753467045904,-515.65524026,0.00020514,2]
[374907821,1753467045916,-432.73892352,0.00020514,2]
[374907822,1753467045927,-404.43583622,0.00020514,2]
[374907824,1753467045936,-460.0,0.00020547,2]
[374907825,1753467045946,-533.6551745,0.00020547,2]
[374916386,1753467173014,476.524757,0.00013699,2]
[374916454,1753468232591,-267.15803426,0.00018,2]
[374916475,1753468233106,-815.59701782,0.00018,2]
[374916476,1753468233116,-300.0,0.00018267,2]
[374916477,1753468233126,-181.84373032,0.00018267,2]
[374916478,1753468233136,-443.62345188,0.00018268,2]
[374916482,1753468238545,-4430.35510177,0.00018268,2]
[374916483,1753468238556,-1309.39145183,0.00018268,2]
[374916484,1753468238568,-1188.41226144,0.00018268,2]
[374916485,1753468238659,-11404.71527748,0.00018268,2]
[374916486,1753468238668,-252.90043066,0.000189,2]
[374916487,1753468238678,-159.09907327,0.00019,20]
[374916488,1753468238688,-312.16666667,0.00019154,2]
[374916489,1753468238701,-173.59388735,0.00019178,2]
[374916490,1753468238712,-460.0,0.00019178,2]
[374916491,1753468238721,-236.58679031,0.00019178,2]
[374916492,1753468238730,-460.0,0.00019178,2]
[374916493,1753468238739,-460.0,0.00019178,2]
[374916494,1753468238748,-460.0,0.00019178,2]
[374916495,1753468238758,-480.61,0.00019178,2]
[374916496,1753468238768,-1365.99,0.00019178,2]
[374916497,1753468238777,-460.0,0.00019178,2]
[374916498,1753468238786,-738.58,0.00019178,2]
[374916499,1753468238795,-460.0,0.00019178,2]
[374916500,1753468238805,-460.0,0.00019178,2]
[374916501,1753468238814,-460.0,0.00019178,2]
[374916502,1753468238824,-460.0,0.00019178,2]
[374916503,1753468238833,-460.0,0.00019178,2]
[374916504,1753468238842,-460.0,0.00019178,2]
[374916505,1753468238852,-460.0,0.00019178,2]
[374916506,1753468238861,-409.83642453,0.00019178,2]
[374916507,1753468238873,-50.16357547,0.00019178,2]
[374916508,1753468238883,-211.77865579,0.00019178,2]
[374916509,1753468238893,-151.59495694,0.00019352,2]
[374916510,1753468238909,-274.74168685,0.00019352,2]
[374916511,1753468238918,-460.0,0.00019352,2]
[374916512,1753468238927,-460.0,0.00019352,2]
[374916513,1753468238937,-460.0,0.00019352,2]
[374916514,1753468238946,-460.0,0.00019352,2]
[374916515,1753468238955,-460.0,0.00019352,2]
[374916516,1753468238969,-460.0,0.00019352,2]
[374916517,1753468238978,-460.0,0.00019352,2]
[374916518,1753468238987,-460.0,0.00019352,2]
[374916519,1753468238997,-706.05,0.00019352,2]
[374916520,1753468239006,-460.0,0.00019352,2]
[374916521,1753468239016,-557.04,0.00019352,2]
[374916522,1753468239026,-460.0,0.00019352,2]
[374916523,1753468239036,-460.0,0.00019353,2]
[374916524,1753468239046,-596.05922913,0.00019353,2]
[374916525,1753468239055,-462.67202119,0.00019353,2]
[374916526,1753468239065,-192.13474523,0.00019353,2]
[374916527,1753468239074,-460.0,0.00019353,2]
[374916528,1753468239083,-460.0,0.00019353,2]
[374916529,1753468239093,-460.0,0.00019353,2]
[374916530,1753468239103,-460.0,0.00019353,2]
[374916531,1753468239112,-1292.51,0.00019353,2]
[374916532,1753468239122,-6022.41806225,0.00019354,2]
[374916567,1753468240596,-23977.58193775,0.00019354,2]
[374916569,1753468240607,-451.61675544,0.00019417,2]
[374916571,1753468240617,-460.0,0.00019452,2]
[374916573,1753468240626,-460.0,0.00019452,2]
[374916575,1753468240636,-460.0,0.00019452,2]
[374916577,1753468240646,-460.0,0.00019452,2]
[374916579,1753468240655,-480.61,0.00019452,2]
[374916581,1753468240664,-1365.99,0.00019452,2]
[374916583,1753468240674,-460.0,0.00019452,2]
[374916585,1753468240684,-738.58,0.00019452,2]
[374916587,1753468240697,-460.0,0.00019452,2]
[374916589,1753468240707,-460.0,0.00019452,2]
[374916591,1753468240716,-460.0,0.00019452,2]
[374916593,1753468240726,-460.0,0.00019452,2]
[374916595,1753468240737,-460.0,0.00019452,2]
[374916598,1753468240747,-460.0,0.00019452,2]
[374916599,1753468240756,-460.0,0.00019452,2]
[374916602,1753468240766,-460.0,0.00019452,2]
[374916604,1753468240776,-578.8400369,0.00019626,2]
[374916605,1753468240785,-301.65940152,0.00019626,2]
[374916607,1753468240795,-460.0,0.00019626,2]
[374916610,1753468240806,-460.0,0.00019626,2]
[374916612,1753468240816,-706.05,0.00019626,2]
[374916614,1753468240826,-319.64,0.00019626,2]
[374916616,1753468240835,-460.0,0.00019626,2]
[374916618,1753468240844,-379.68860858,0.00019627,2]
[374916620,1753468240854,-460.0,0.00019627,2]
[374916622,1753468240863,-460.0,0.00019627,2]
[374916624,1753468240872,-460.0,0.00019627,2]
[374916626,1753468240882,-1292.51,0.00019627,2]
[374916628,1753468240892,-460.0,0.00019726,2]
[374916630,1753468240901,-480.61,0.00019726,2]
[374916632,1753468240910,-1365.99,0.00019726,2]
[374916634,1753468240920,-460.0,0.00019726,2]
[374916636,1753468240929,-738.58,0.00019726,2]
[374916638,1753468240939,-151.0,0.00019726,2]
[374916640,1753468240949,-460.0,0.00019726,2]
[374916642,1753468240958,-460.0,0.00019726,2]
[374916644,1753468240968,-460.0,0.00019726,2]
[374916646,1753468240977,-460.0,0.00019726,2]
[374916648,1753468240986,-460.0,0.00019726,2]
[374916650,1753468240996,-460.0,0.00019726,2]
[374916652,1753468241005,-460.0,0.00019726,2]
[374916654,1753468241015,-460.0,0.00019726,2]
[374916656,1753468241026,-625.8331832,0.000199,2]
[374916658,1753468241035,-460.0,0.000199,2]
[374916660,1753468241045,-67066.49039613,0.000199,2]
[374916907,1753468243666,-15561.86464848,0.000199,2]
[374917222,1753468246688,-4109.32999664,0.000199,2]
[374919649,1753468517493,470.036214,0.00013699,2]
[374919673,1753469431859,-15075.32669611,0.00018557,2]
[374919674,1753469431869,-13213.4567916,0.00018557,2]
[374919675,1753469431880,-168.60028711,0.000189,2]
[374919676,1753469431890,-232.855527,0.000189,2]
[374919677,1753469431899,-312.16666667,0.00019156,2]
[374919678,1753469431910,-460.0,0.00019178,2]
[374919679,1753469431920,-333.77401498,0.00019178,2]
[374919680,1753469431929,-460.0,0.00019178,2]
[374919681,1753469431939,-460.0,0.00019178,2]
[374919684,1753469431949,-277.31442136,0.00019178,2]
[374919686,1753469431958,-460.0,0.00019178,2]
[374919688,1753469431968,-460.0,0.00019178,2]
[374919689,1753469431977,-460.0,0.00019178,2]
[374919690,1753469431987,-579.18,0.00019178,2]
[374919691,1753469431996,-1413.28,0.00019178,2]
[374919692,1753469432005,-733.46,0.00019178,2]
[374919693,1753469432015,-290.9357974,0.00019178,2]
[374919694,1753469432024,-460.0,0.00019178,2]
[374919695,1753469432034,-460.0,0.00019178,2]
[374919696,1753469432049,-550.75,0.00019178,2]
[374919697,1753469432060,-460.0,0.00019178,2]
[374919699,1753469432069,-829.33,0.00019178,2]
[374919701,1753469432079,-460.0,0.00019178,2]
[374919703,1753469432088,-460.0,0.00019178,2]
[374919705,1753469432098,-460.0,0.00019178,2]
[374919707,1753469432107,-460.0,0.00019178,2]
[374919709,1753469432118,-498.13,0.00019178,2]
[374919710,1753469432128,-465.31,0.00019178,2]
[374919712,1753469432138,-460.0,0.00019178,2]
[374919714,1753469432148,-559.33,0.00019178,2]
[374919717,1753469432159,-460.0,0.00019178,2]
[374919719,1753469432168,-460.0,0.00019352,2]
[374919720,1753469432177,-460.0,0.00019353,2]
[374919722,1753469432187,-460.0,0.00019353,2]
[374919724,1753469432196,-2110.00055925,0.00019444,2]
[374919734,1753469432299,-460.0,0.0001945,2]
[374919735,1753469432345,-460.0,0.0001945,2]
[374919737,1753469432355,-460.0,0.0001945,2]
[374919739,1753469432364,-460.0,0.0001945,2]
[374919740,1753469432375,-460.0,0.0001945,2]
[374919741,1753469432385,-460.0,0.0001945,2]
[374919742,1753469432394,-460.0,0.0001945,2]
[374919743,1753469432404,-460.0,0.0001945,2]
[374919744,1753469432413,-460.0,0.0001945,2]
[374919745,1753469432422,-460.0,0.0001945,2]
[374919746,1753469432432,-460.0,0.0001945,2]
[374919747,1753469432441,-460.0,0.0001945,2]
[374919748,1753469432451,-460.0,0.0001945,2]
[374919750,1753469432460,-460.0,0.0001945,2]
[374919751,1753469432470,-460.0,0.0001945,2]
[374919752,1753469432479,-647.21,0.0001945,2]
[374919753,1753469432489,-460.0,0.0001945,2]
[374919754,1753469432499,-151.0,0.0001945,2]
[374919755,1753469432508,-460.0,0.00019451,2]
[374919756,1753469432526,-460.0,0.00019451,2]
[374919757,1753469432544,-173.36793713,0.00019451,2]
[374919758,1753469432555,-460.0,0.00019451,2]
[374919759,1753469432564,-460.0,0.00019451,2]
[374919760,1753469432575,-460.0,0.00019451,2]
[374919761,1753469432584,-151.0,0.00019451,2]
[374919762,1753469432594,-153.06486803,0.00019451,2]
[374919763,1753469432604,-460.0,0.00019452,2]
[374919764,1753469432623,-460.0,0.00019452,2]
[374919765,1753469432632,-506.0,0.00019452,2]
[374919766,1753469432643,-151.0,0.00019452,2]
[374919767,1753469432654,-151.0,0.00019452,2]
[374919768,1753469432664,-151.0,0.00019452,2]
[374919769,1753469432673,-579.18,0.00019452,2]
[374919770,1753469432683,-1413.28,0.00019452,2]
[374919771,1753469432693,-733.46,0.00019452,2]
[374919772,1753469432703,-198.0,0.00019452,2]
[374919773,1753469432712,-151.0,0.00019452,2]
[374919774,1753469432722,-460.0,0.00019452,2]
[374919776,1753469432731,-460.0,0.00019452,2]
[374919777,1753469432741,-550.75,0.00019452,2]
[374919778,1753469432751,-460.0,0.00019452,2]
[374919779,1753469432760,-829.33,0.00019452,2]
[374919780,1753469432769,-460.0,0.00019452,2]
[374919781,1753469432779,-460.0,0.00019452,2]
[374919782,1753469432788,-547.56613861,0.00019452,2]
[374919784,1753469432799,-460.0,0.00019452,2]
[374919785,1753469432809,-498.13,0.00019452,2]
[374919786,1753469432818,-465.31,0.00019452,2]
[374919787,1753469432827,-460.0,0.00019452,2]
[374919788,1753469432837,-559.33,0.00019452,2]
[374919789,1753469432847,-2110.00055926,0.00019559,2]
[374919790,1753469432857,-460.0,0.00019625,2]
[374919791,1753469432866,-1491.02,0.00019625,2]
[374919792,1753469432876,-460.0,0.00019625,2]
[374919793,1753469432885,-460.0,0.00019625,2]
[374919794,1753469432895,-460.0,0.00019625,2]
[374919795,1753469432905,-157.38943386,0.00019626,2]
[374919796,1753469432914,-151.0,0.00019724,2]
[374919797,1753469432924,-460.0,0.00019724,2]
[374919798,1753469432933,-460.0,0.00019724,2]
[374919799,1753469432943,-460.0,0.00019724,2]
[374919800,1753469432952,-460.0,0.00019724,2]
[374919801,1753469432962,-536.34653414,0.00019724,2]
[374919802,1753469432972,-647.21,0.00019724,2]
[374919803,1753469432981,-460.0,0.00019724,2]
[374919804,1753469432990,-151.0,0.00019725,2]
[374919805,1753469433000,-460.0,0.00019725,2]
[374919806,1753469433010,-281.95789548,0.00019725,2]
[374919807,1753469433020,-506.0,0.00019726,2]
[374919808,1753469433031,-151.0,0.00019726,2]
[374919809,1753469433047,-151.0,0.00019726,2]
[374919810,1753469433059,-151.0,0.00019726,2]
[374919811,1753469433071,-151.0,0.00019726,2]
[374919812,1753469433083,-579.18,0.00019726,2]
[374919813,1753469433096,-1413.28,0.00019726,2]
[374919814,1753469433108,-733.46,0.00019726,2]
[374919815,1753469433122,-460.0,0.00019726,2]
[374919816,1753469433134,-460.0,0.00019726,2]
[374919817,1753469433145,-550.75,0.00019726,2]
[374919818,1753469433155,-460.0,0.00019726,2]
[374919819,1753469433166,-829.33,0.00019726,2]
[374919820,1753469433177,-460.0,0.00019726,2]
[374919821,1753469433188,-460.0,0.00019726,2]
[374919822,1753469433198,-460.0,0.00019726,2]
[374919823,1753469433209,-498.13,0.00019726,2]
[374919824,1753469433219,-465.31,0.00019726,2]
[374919825,1753469433230,-460.0,0.00019726,2]
[374919826,1753469433240,-559.33,0.00019726,2]
[374919827,1753469433250,-500.0,0.00019806,2]
[374919828,1753469433259,-460.0,0.00019872,2]
[374919829,1753469433269,-188.89501156,0.00019872,2]
[374919830,1753469433279,-460.0,0.00019872,2]
[374919831,1753469433289,-460.0,0.00019899,2]
[374919832,1753469433299,-1491.02,0.00019899,2]
[374919833,1753469433309,-460.0,0.00019899,2]
[374919834,1753469433319,-460.0,0.00019899,2]
[374919835,1753469433329,-460.0,0.00019899,2]
[374919836,1753469433340,-3816.29420963,0.000199,2]
[374919837,1753469433350,-290.93839525,0.000199,2]
[374919838,1753469433360,-151.0,0.00019998,2]
[374919839,1753469433370,-460.0,0.00019998,2]
[374919840,1753469433381,-460.0,0.00019998,2]
[374919841,1753469433391,-460.0,0.00019998,2]
[374919842,1753469433401,-647.21,0.00019998,2]
[374919843,1753469433410,-353.5484769,0.00019998,2]
[374919844,1753469433420,-151.0,0.00019999,2]
[374919845,1753469433430,-529.46552197,0.00019999,2]
[374919846,1753469433441,-506.0,0.0002,2]
[374919847,1753469433450,-151.0,0.0002,2]
[374919848,1753469433460,-198.0,0.0002,2]
[374919849,1753469433470,-216.89327024,0.0002,2]
[374919850,1753469433479,-579.18,0.0002,2]
[374919851,1753469433489,-1413.28,0.0002,2]
[374919852,1753469433499,-733.46,0.0002,2]
[374919853,1753469433509,-460.0,0.0002,2]
[374919854,1753469433518,-460.0,0.0002,2]
[374919855,1753469433528,-550.75,0.0002,2]
[374919856,1753469433537,-460.0,0.0002,2]
[374919857,1753469433547,-829.33,0.0002,2]
[374919858,1753469433559,-460.0,0.0002,2]
[374919859,1753469433568,-460.0,0.0002,2]
[374919860,1753469433578,-290.683271,0.0002,2]
[374919861,1753469433587,-460.0,0.0002,2]
[374919862,1753469433596,-498.13,0.0002,2]
[374919863,1753469433606,-465.31,0.0002,2]
[374919864,1753469433615,-575.39461482,0.0002,2]
[374919865,1753469433625,-559.33,0.0002,2]
[374919866,1753469433635,-160.0,0.00020005,2]
[374919867,1753469433644,-460.0,0.00020173,2]
[374919868,1753469433653,-1491.02,0.00020173,2]
[374919869,1753469433663,-460.0,0.00020173,2]
[374919870,1753469433673,-460.0,0.00020173,2]
[374919871,1753469433682,-460.0,0.00020173,2]
[374919872,1753469433692,-470.036214,0.00020187,2]
[374919873,1753469433701,-274.473317,0.00020195,8]
[374919874,1753469433711,-151.0,0.00020272,2]
[374919875,1753469433721,-460.0,0.00020272,2]
[374919876,1753469433731,-460.0,0.00020272,2]
[374919877,1753469433740,-460.0,0.00020272,2]
[374919878,1753469433750,-183.594012,0.00020272,2]
[374919879,1753469433759,-183.594012,0.00020272,2]
[374919880,1753469433770,-647.21,0.00020272,2]
[374919881,1753469433779,-198.0,0.00020273,2]
[374919882,1753469433789,-579.18,0.00020273,2]
[374919883,1753469433799,-1413.28,0.00020273,2]
[374919884,1753469433811,-733.46,0.00020273,2]
[374919885,1753469433820,-460.0,0.00020273,2]
[374919886,1753469433830,-550.75,0.00020273,2]
[374919887,1753469433839,-460.0,0.00020273,2]
[374919888,1753469433849,-460.0,0.00020273,2]
[374919889,1753469433858,-829.33,0.00020273,2]
[374919890,1753469433868,-460.0,0.00020273,2]
[374919891,1753469433878,-460.0,0.00020273,2]
[374919892,1753469433888,-460.0,0.00020273,2]
[374919893,1753469433897,-498.13,0.00020273,2]
[374919894,1753469433907,-465.31,0.00020273,2]
[374919895,1753469433917,-559.33,0.00020273,2]
[374919896,1753469433928,-506.0,0.00020274,2]
[374919897,1753469433938,-151.0,0.00020274,2]
[374919898,1753469433948,-1000.0,0.00020354,2]
[374919899,1753469433958,-460.0,0.00020447,2]
[374919900,1753469433967,-1491.02,0.00020447,2]
[374919901,1753469433977,-460.0,0.00020447,2]
[374919902,1753469433986,-460.0,0.00020447,2]
[374919903,1753469433995,-460.0,0.00020447,2]
[374919904,1753469434006,-500.0,0.0002054,2]
[374919905,1753469434015,-486.23098742,0.0002054,2]
[374919906,1753469434024,-255.0,0.00020546,2]
[374919907,1753469434034,-460.0,0.00020546,2]
[374919908,1753469434046,-460.0,0.00020546,2]
[374919909,1753469434057,-647.21,0.00020546,2]
[374919910,1753469434066,-502.49735592,0.00020547,2]
[374919911,1753469434076,-579.18,0.00020547,2]
[374919912,1753469434087,-1413.28,0.00020547,2]
[374919913,1753469434096,-733.46,0.00020547,2]
[374919914,1753469434105,-460.0,0.00020547,2]
[374919915,1753469434116,-550.75,0.00020547,2]
[374919916,1753469434126,-460.0,0.00020547,2]
[374919917,1753469434136,-829.33,0.00020547,2]
[374919918,1753469434145,-460.0,0.00020547,2]
[374919919,1753469434155,-460.0,0.00020547,2]
[374919920,1753469434165,-183.594012,0.00020547,2]
[374919921,1753469434179,-183.594012,0.00020547,2]
[374919922,1753469434200,-460.0,0.00020547,2]
[374919923,1753469434211,-498.13,0.00020547,2]
[374919924,1753469434221,-465.31,0.00020547,2]
[374919925,1753469434231,-559.33,0.00020547,2]
[374919926,1753469434242,-506.0,0.00020548,2]
[374919927,1753469434251,-260.0,0.00020553,2]
[374919928,1753469434261,-5185.26715247,0.00020623,2]
[374919929,1753469434271,-460.0,0.00020721,2]
[374919930,1753469434281,-1491.02,0.00020721,2]
[374919931,1753469434291,-460.0,0.00020721,2]
[374919932,1753469434301,-460.0,0.00020721,2]
[374919933,1753469434311,-460.0,0.00020721,2]
[374919934,1753469434321,-460.0,0.0002082,2]
[374919935,1753469434331,-460.0,0.0002082,2]
[374919936,1753469434341,-647.21,0.0002082,2]
[374919937,1753469434350,-579.18,0.00020821,2]
[374919938,1753469434360,-1413.28,0.00020821,2]
[374919939,1753469434370,-733.46,0.00020821,2]
[374919940,1753469434380,-460.0,0.00020821,2]
[374919941,1753469434389,-550.75,0.00020821,2]
[374919942,1753469434399,-829.33,0.00020821,2]
[374919943,1753469434409,-460.0,0.00020821,2]
[374919944,1753469434418,-460.0,0.00020821,2]
[374919945,1753469434428,-460.0,0.00020821,2]
[374919946,1753469434437,-498.13,0.00020821,2]
[374919947,1753469434446,-465.31,0.00020821,2]
[374919948,1753469434455,-559.33,0.00020821,2]
[374919949,1753469434465,-506.0,0.00020822,2]
[374919950,1753469434474,-1500.0,0.00020902,2]
[374919951,1753469434483,-153.0,0.00020932,2]
[374919952,1753469434492,-153.0,0.00020932,2]
[374919953,1753469434502,-153.0,0.00020932,2]
[374919954,1753469434511,-178.3051933,0.00020932,2]
[374919955,1753469434520,-159.9857365,0.00020932,2]
[374919956,1753469434529,-178.3051933,0.00020932,2]
[374919957,1753469434538,-159.9857365,0.00020932,2]
[374919958,1753469434547,-159.7902229,0.00020932,2]
[374919959,1753469434558,-178.0871482,0.00020932,2]
[374919960,1753469434568,-577.7720337,0.00020932,2]
[374919961,1753469434578,-577.7720337,0.00020932,2]
[374919962,1753469434588,-577.085229,0.00020932,2]
[374919963,1753469434598,-500.0,0.00020951,2]
[374919964,1753469434608,-183.594012,0.0002098,2]
[374919965,1753469434617,-183.594012,0.0002098,2]
[374919966,1753469434626,-1076.07488634,0.0002098,2]
[374919967,1753469434635,-214.7599002,0.0002098,2]
[374919968,1753469434646,-160.0,0.0002098,2]
[374919969,1753469434656,-12627.2413641,0.0002098,2]
[374919970,1753469434666,-160.0,0.0002098,2]
[374919971,1753469434675,-160.0,0.0002098,2]
[374919972,1753469434686,-215.93003454,0.0002098,2]
[374919973,1753469434695,-160.0,0.0002098,2]
[374919974,1753469434706,-231.20877768,0.0002098,2]
[374919975,1753469434715,-840.4016166,0.0002098,2]
[374919976,1753469434725,-160.0,0.0002098,2]
[374919977,1753469434734,-526.33361954,0.0002098,2]
[374919978,1753469434743,-460.0,0.00020995,2]
[374919979,1753469434752,-1491.02,0.00020995,2]
[374919980,1753469434762,-460.0,0.00020995,2]
[374919981,1753469434772,-460.0,0.00020995,2]
[374919982,1753469434782,-543.30094219,0.00020995,2]
[374919983,1753469434792,-460.0,0.00020995,2]
[374919984,1753469434805,-150.0,0.00021,2]
[374919985,1753469434814,-22856.78394,0.00021,2]
[374919986,1753469434823,-183.594012,0.00021,2]
[374919987,1753469434832,-183.594012,0.00021,2]
[374919988,1753469434842,-500.0,0.00021064,2]
[374919989,1753469434851,-460.0,0.00021094,2]
[374919990,1753469434860,-504.76504255,0.00021094,2]
[374919991,1753469434869,-647.21,0.00021094,2]
[374919992,1753469434879,-579.18,0.00021095,2]
[374919993,1753469434888,-1413.28,0.00021095,2]
[374919994,1753469434897,-733.46,0.00021095,2]
[374919995,1753469434906,-203.42,0.00021095,2]
[374919996,1753469434916,-550.75,0.00021095,2]
[374919997,1753469434926,-829.33,0.00021095,2]
[374919998,1753469434936,-460.0,0.00021095,2]
[374919999,1753469434946,-460.0,0.00021095,2]
[374920000,1753469434955,-460.0,0.00021095,2]
[374920001,1753469434966,-498.13,0.00021095,2]
[374920002,1753469434976,-465.31,0.00021095,2]
[374920003,1753469434986,-559.33,0.00021095,2]
[374920004,1753469434995,-506.0,0.00021096,2]
[374920005,1753469435006,-360.0,0.00021101,2]
[374920006,1753469435016,-178.723,0.00021223,2]
[374920007,1753469435025,-562.142,0.00021223,2]
[374920008,1753469435036,-460.0,0.00021269,2]
[374920009,1753469435050,-1491.02,0.00021269,2]
[374920010,1753469435060,-460.0,0.00021269,2]
[374920011,1753469435070,-460.0,0.00021269,2]
[374920012,1753469435082,-460.0,0.00021269,2]
[374920013,1753469435094,-500.0,0.00021273,2]
[374920014,1753469435105,-269.31324823,0.00021273,2]
[374920015,1753469435115,-500.0,0.00021273,2]
[374920016,1753469435128,-621.69907411,0.00021273,2]
[374920017,1753469435138,-500.0,0.00021273,2]
[374920018,1753469435147,-500.0,0.00021273,2]
[374920019,1753469435157,-500.0,0.00021273,2]
[374920020,1753469435166,-500.0,0.00021273,2]
[374920021,1753469435175,-500.0,0.00021273,2]
[374920022,1753469435184,-500.0,0.00021273,2]
[374920023,1753469435194,-501.72112936,0.00021273,2]
[374920024,1753469435203,-500.0,0.00021273,2]
[374920025,1753469435212,-500.0,0.00021273,2]
[374920026,1753469435221,-500.0,0.00021273,2]
[374920027,1753469435231,-500.0,0.00021273,2]
[374920028,1753469435240,-505.18002943,0.00021273,2]
[374920029,1753469435249,-500.0,0.00021273,2]
[374920030,1753469435259,-552.78730248,0.00021273,2]
[374920031,1753469435269,-500.0,0.00021273,2]
[374920032,1753469435280,-500.0,0.00021273,2]
[374920033,1753469435289,-500.0,0.00021273,2]
[374920034,1753469435298,-500.0,0.00021273,2]
[374920035,1753469435308,-641.49978633,0.00021273,2]
[374920036,1753469435318,-644.41561795,0.00021273,2]
[374920037,1753469435328,-158.34443592,0.00021273,2]
[374920038,1753469435444,-500.0,0.00021273,2]
[374920039,1753469435454,-500.8524135,0.00021273,2]
[374920040,1753469435464,-500.0,0.00021273,2]
[374920041,1753469435474,-500.0,0.00021273,2]
[374920042,1753469435484,-500.0,0.00021273,2]
[374920043,1753469435495,-500.0,0.00021273,2]
[374920044,1753469435505,-500.0,0.00021273,2]
[374920045,1753469435516,-500.0,0.00021273,2]
[374920046,1753469435527,-500.36042279,0.00021273,2]
[374920047,1753469435538,-500.0,0.00021273,2]
[374920048,1753469435548,-414.71052898,0.00021273,2]
[374920049,1753469435558,-500.0,0.00021273,2]
[374920050,1753469435570,-500.0,0.00021273,2]
[374920051,1753469435581,-183.594012,0.00021273,2]
[374920052,1753469435593,-183.594012,0.00021273,2]
[374920053,1753469435605,-151.0,0.00021297,2]
[374920054,1753469435616,-151.0,0.00021297,2]
[374920055,1753469435626,-151.0,0.00021297,2]
[374920056,1753469435638,-215.0738,0.00021297,2]
[374920057,1753469435647,-151.0,0.00021297,2]
[374920058,1753469435657,-151.0,0.00021297,2]
[374920059,1753469435666,-151.0,0.00021297,2]
[374920060,1753469435675,-151.0,0.00021297,2]
[374920061,1753469435685,-151.0,0.00021297,2]
[374920062,1753469435694,-151.0,0.00021297,2]
[374920063,1753469435703,-279.85335205,0.00021297,2]
[374920064,1753469435713,-151.0,0.00021297,2]
[374920065,1753469435722,-151.0,0.00021297,2]
[374920066,1753469435731,-151.0,0.00021297,2]
[374920067,1753469435741,-151.0,0.00021297,2]
[374920068,1753469435750,-151.0,0.00021297,2]
[374920069,1753469435760,-151.0,0.00021297,2]
[374920070,1753469435769,-151.0,0.00021297,2]
[374920071,1753469435778,-151.0,0.00021297,2]
[374920072,1753469435788,-151.0,0.00021297,2]
[374920073,1753469435797,-151.0,0.00021297,2]
[374920074,1753469435808,-151.0,0.00021297,2]
[374920075,1753469435818,-151.0,0.00021297,2]